{"text_format":"1","workbook":"xlsx","n_sheets":2,"sheets":["Classificação","Placar"],"not_rendered":{"charts":0,"images":22,"macros":1,"external_links":0,"defined_names":49,"comments":0,"pivot_tables":0},"unopened":[],"bounds":{"document_bytes":16777216,"sheet_cells":100000,"rows_first":2000,"rows_last":500,"rows_between":2000,"halvings":0,"cell_chars":16384,"cell_head_chars":4096},"cells_cut":0,"cells_raw":0,"read":"whole","date_system":"1900"}

{"sheet":"Classificação","index":0,"n_rows":306,"n_cols":16,"rows_kept":306,"cut":false,"hidden":false,"merged":[[2,3,3,14]]}
[]
[]
[null,null,null,"Campeonato Brasileiro Série A"]
[]
[]
[null,null,null,"Pos","Esc","Clubes","P","J","V","E","D","GP","GC","SG","%"]
[null,null,null,1,null,"Palmeiras",39,19,11,6,2,31,13,18,68.421000000000006]
[null,null,null,2,null,"Corinthians",35,19,10,5,4,24,19,5,61.402999999999999]
[null,null,null,3,null,"Fluminense",34,19,10,4,5,29,20,9,59.649000000000001]
[null,null,null,4,null,"Atlético-MG",32,19,8,8,3,27,20,7,56.14]
[null,null,null,5,null,"Athletico-PR",31,19,9,4,6,24,20,4,54.384999999999998]
[null,null,null,6,null,"Flamengo",30,19,9,3,7,26,18,8,52.631]
[null,null,null,7,null,"Internacional",30,19,7,9,3,27,20,7,52.631]
[null,null,null,8,null,"Red Bull Bragantino",27,19,7,6,6,30,23,7,47.368000000000002]
[null,null,null,9,null,"Santos",26,19,6,8,5,22,16,6,45.613999999999997]
[null,null,null,10,null,"São Paulo",26,19,5,11,3,28,24,4,45.613999999999997]
[null,null,null,11,null,"Botafogo",24,19,7,3,9,19,24,-5,42.104999999999997]
[null,null,null,12,null,"Ceará",24,19,5,9,5,20,19,1,42.104999999999997]
[null,null,null,13,null,"Coritiba",22,19,6,4,9,22,30,-8,38.595999999999997]
[null,null,null,14,null,"Goiás",22,19,5,7,7,21,25,-4,38.595999999999997]
[null,null,null,15,null,"América-MG",21,19,6,3,10,13,22,-9,36.841999999999999]
[null,null,null,16,null,"Avaí",21,19,6,3,10,20,30,-10,36.841999999999999]
[null,null,null,17,null,"Cuiabá",20,19,5,5,9,14,20,-6,35.087000000000003]
[null,null,null,18,null,"Atlético-GO",17,19,4,5,10,18,28,-10,29.824000000000002]
[null,null,null,19,null,"Juventude",16,19,3,7,9,16,32,-16,28.07]
[null,null,null,20,null,"Fortaleza",15,19,3,6,10,15,23,-8,26.315000000000001]
[]
[]
[]
[]
[]
[]
[]
[]
[]
[]
[]
[]
[]
[]
[]
[]
[]
[]
[]
[]
[]
[]
[]
[]
[]
[]
[]
[]
[]
[]
[]
[]
[]
[]
[]
[]
[]
[]
[]
[]
[]
[]
[]
[]
[]
[]
[]
[]
[]
[]
[]
[]
[]
[]
[]
[]
[]
[]
[]
[]
[]
[]
[]
[]
[]
[]
[]
[]
[]
[]
[]
[]
[]
[]
[]
[]
[]
[]
[]
[]
[]
[]
[]
[]
[]
[]
[]
[]
[]
[]
[]
[]
[]
[]
[]
[]
[]
[]
[]
[]
[]
[]
[]
[]
[]
[]
[]
[]
[]
[]
[]
[]
[]
[]
[]
[]
[]
[]
[]
[]
[]
[]
[]
[]
[]
[]
[]
[]
[]
[]
[]
[]
[]
[]
[]
[]
[]
[]
[]
[]
[]
[]
[]
[]
[]
[]
[]
[]
[]
[]
[]
[]
[]
[]
[]
[]
[]
[]
[]
[]
[]
[]
[]
[]
[]
[]
[]
[]
[]
[]
[]
[]
[]
[]
[]
[]
[]
[]
[]
[]
[]
[]
[]
[]
[]
[]
[]
[]
[]
[]
[]
[]
[]
[]
[]
[]
[]
[]
[]
[]
[]
[]
[]
[]
[]
[]
[]
[]
[]
[]
[]
[]
[]
[]
[]
[]
[]
[]
[]
[]
[]
[]
[]
[]
[]
[]
[]
[]
[]
[]
[]
[]
[]
[]
[]
[]
[]
[]
[]
[]
[]
[]
[]
[]
[]
[]
[]
[]
[]
[]
[]
[]
[]
[]
[]
[]
[]
[]
[]
[]
[null,null,null,null,null,null,null,null,null,null,null,null,null,null,null,{"$f":"MID(E287,1,11)","v":""}]
[null,null,null,null,null,null,null,null,null,null,null,null,null,null,null,""]
[null,null,null,null,null,null,null,null,null,null,null,null,null,null,null,""]
[null,null,null,null,null,null,null,null,null,null,null,null,null,null,null,""]
[null,null,null,null,null,null,null,null,null,null,null,null,null,null,null,""]
[null,null,null,null,null,null,null,null,null,null,null,null,null,null,null,""]
[null,null,null,null,null,null,null,null,null,null,null,null,null,null,null,""]
[null,null,null,null,null,null,null,null,null,null,null,null,null,null,null,""]
[null,null,null,null,null,null,null,null,null,null,null,null,null,null,null,""]
[null,null,null,null,null,null,null,null,null,null,null,null,null,null,null,""]
[null,null,null,null,null,null,null,null,null,null,null,null,null,null,null,""]
[null,null,null,null,null,null,null,null,null,null,null,null,null,null,null,""]
[null,null,null,null,null,null,null,null,null,null,null,null,null,null,null,""]
[null,null,null,null,null,null,null,null,null,null,null,null,null,null,null,""]
[null,null,null,null,null,null,null,null,null,null,null,null,null,null,null,""]
[null,null,null,null,null,null,null,null,null,null,null,null,null,null,null,""]
[null,null,null,null,null,null,null,null,null,null,null,null,null,null,null,""]
[null,null,null,null,null,null,null,null,null,null,null,null,null,null,null,""]
[null,null,null,null,null,null,null,null,null,null,null,null,null,null,null,""]
[null,null,null,null,null,null,null,null,null,null,null,null,null,null,null,""]

{"sheet":"Placar","index":1,"n_rows":386,"n_cols":13,"rows_kept":386,"cut":false,"hidden":false,"merged":[[5,9,5,11],[2,5,3,12]]}
[]
[]
[null,null,null,null,null,"Campeonato Brasileiro Série A"]
[]
[]
[null,null,null,null,null,"Jogos","DATA","HORA","CASA","Placar",null,null,"FORA"]
[null,null,null,null,null,1,"2022-04-09","16:00:00","Atlético/MG",2,"X",0,"Internacional"]
[null,null,null,null,null,1,"2022-04-09","16:00:00","Fluminense",0,"X",0,"Santos"]
[null,null,null,null,null,1,"2022-04-09","16:00:00","São Paulo",4,"X",0,"Athletico/PR"]
[null,null,null,null,null,1,"2022-04-09","16:00:00","Palmeiras",2,"X",3,"Ceará"]
[null,null,null,null,null,1,"2022-04-09","16:00:00","Botafogo",1,"X",3,"Corinthians"]
[null,null,null,null,null,1,"2022-04-09","16:00:00","Juventude",2,"X",2,"RB Bragantino"]
[null,null,null,null,null,1,"2022-04-09","16:00:00","Fortaleza",0,"X",1,"Cuiabá"]
[null,null,null,null,null,1,"2022-04-09","16:00:00","Atlético/GO",1,"X",1,"Flamengo"]
[null,null,null,null,null,1,"2022-04-09","16:00:00","Avaí",1,"X",0,"América/MG"]
[null,null,null,null,null,1,"2022-04-09","16:00:00","Coritiba",null,"X",null,"Goiás"]
[null,null,null,null,null,2,"2022-04-16","16:00:00","América/MG",null,"X",null,"Juventude"]
[null,null,null,null,null,2,"2022-04-16","16:00:00","Flamengo",null,"X",null,"São Paulo"]
[null,null,null,null,null,2,"2022-04-16","16:00:00","RB Bragantino",null,"X",null,"Atlético/GO"]
[null,null,null,null,null,2,"2022-04-16","16:00:00","Corinthians",null,"X",null,"Avaí"]
[null,null,null,null,null,2,"2022-04-16","16:00:00","Santos",null,"X",null,"Coritiba"]
[null,null,null,null,null,2,"2022-04-16","16:00:00","Internacional",null,"X",null,"Fortaleza"]
[null,null,null,null,null,2,"2022-04-16","16:00:00","Ceará",null,"X",null,"Botafogo"]
[null,null,null,null,null,2,"2022-04-16","16:00:00","Goiás",null,"X",null,"Palmeiras"]
[null,null,null,null,null,2,"2022-04-16","16:00:00","Cuiabá",null,"X",null,"Fluminense"]
[null,null,null,null,null,2,"2022-04-16","16:00:00","Athletico/PR",null,"X",null,"Atlético/MG"]
[null,null,null,null,null,3,"2022-04-23","16:00:00","Atlético/MG",null,"X",null,"Coritiba"]
[null,null,null,null,null,3,"2022-04-23","16:00:00","Fluminense",null,"X",null,"Internacional"]
[null,null,null,null,null,3,"2022-04-23","16:00:00","RB Bragantino",null,"X",null,"São Paulo"]
[null,null,null,null,null,3,"2022-04-23","16:00:00","Palmeiras",null,"X",null,"Corinthians"]
[null,null,null,null,null,3,"2022-04-23","16:00:00","Santos",null,"X",null,"América/MG"]
[null,null,null,null,null,3,"2022-04-23","16:00:00","Juventude",null,"X",null,"Cuiabá"]
[null,null,null,null,null,3,"2022-04-23","16:00:00","Fortaleza",null,"X",null,"Ceará"]
[null,null,null,null,null,3,"2022-04-23","16:00:00","Atlético/GO",null,"X",null,"Botafogo"]
[null,null,null,null,null,3,"2022-04-23","16:00:00","Avaí",null,"X",null,"Goiás"]
[null,null,null,null,null,3,"2022-04-23","16:00:00","Athletico/PR",null,"X",null,"Flamengo"]
[null,null,null,null,null,4,"2022-04-30","16:00:00","América/MG",null,"X",null,"Athletico/PR"]
[null,null,null,null,null,4,"2022-04-30","16:00:00","Flamengo",null,"X",null,"Palmeiras"]
[null,null,null,null,null,4,"2022-04-30","16:00:00","São Paulo",null,"X",null,"Santos"]
[null,null,null,null,null,4,"2022-04-30","16:00:00","Corinthians",null,"X",null,"Fortaleza"]
[null,null,null,null,null,4,"2022-04-30","16:00:00","Botafogo",null,"X",null,"Juventude"]
[null,null,null,null,null,4,"2022-04-30","16:00:00","Internacional",null,"X",null,"Avaí"]
[null,null,null,null,null,4,"2022-04-30","16:00:00","Ceará",null,"X",null,"RB Bragantino"]
[null,null,null,null,null,4,"2022-04-30","16:00:00","Goiás",null,"X",null,"Atlético/MG"]
[null,null,null,null,null,4,"2022-04-30","16:00:00","Cuiabá",null,"X",null,"Atlético/GO"]
[null,null,null,null,null,4,"2022-04-30","16:00:00","Coritiba",null,"X",null,"Fluminense"]
[null,null,null,null,null,5,"2022-05-07","16:00:00","Atlético/MG",null,"X",null,"América/MG"]
[null,null,null,null,null,5,"2022-05-07","16:00:00","Flamengo",null,"X",null,"Botafogo"]
[null,null,null,null,null,5,"2022-05-07","16:00:00","RB Bragantino",null,"X",null,"Corinthians"]
[null,null,null,null,null,5,"2022-05-07","16:00:00","Palmeiras",null,"X",null,"Fluminense"]
[null,null,null,null,null,5,"2022-05-07","16:00:00","Santos",null,"X",null,"Cuiabá"]
[null,null,null,null,null,5,"2022-05-07","16:00:00","Juventude",null,"X",null,"Internacional"]
[null,null,null,null,null,5,"2022-05-07","16:00:00","Fortaleza",null,"X",null,"São Paulo"]
[null,null,null,null,null,5,"2022-05-07","16:00:00","Atlético/GO",null,"X",null,"Goiás"]
[null,null,null,null,null,5,"2022-05-07","16:00:00","Avaí",null,"X",null,"Coritiba"]
[null,null,null,null,null,5,"2022-05-07","16:00:00","Athletico/PR",null,"X",null,"Ceará"]
[null,null,null,null,null,6,"2022-05-14","16:00:00","Atlético/MG",null,"X",null,"Atlético/GO"]
[null,null,null,null,null,6,"2022-05-14","16:00:00","Fluminense",null,"X",null,"Athletico/PR"]
[null,null,null,null,null,6,"2022-05-14","16:00:00","São Paulo",null,"X",null,"Cuiabá"]
[null,null,null,null,null,6,"2022-05-14","16:00:00","Palmeiras",null,"X",null,"RB Bragantino"]
[null,null,null,null,null,6,"2022-05-14","16:00:00","Botafogo",null,"X",null,"Fortaleza"]
[null,null,null,null,null,6,"2022-05-14","16:00:00","Internacional",null,"X",null,"Corinthians"]
[null,null,null,null,null,6,"2022-05-14","16:00:00","Ceará",null,"X",null,"Flamengo"]
[null,null,null,null,null,6,"2022-05-14","16:00:00","Goiás",null,"X",null,"Santos"]
[null,null,null,null,null,6,"2022-05-14","16:00:00","Avaí",null,"X",null,"Juventude"]
[null,null,null,null,null,6,"2022-05-14","16:00:00","Coritiba",null,"X",null,"América/MG"]
[null,null,null,null,null,7,"2022-05-21","16:00:00","América/MG",null,"X",null,"Botafogo"]
[null,null,null,null,null,7,"2022-05-21","16:00:00","Flamengo",null,"X",null,"Goiás"]
[null,null,null,null,null,7,"2022-05-21","16:00:00","RB Bragantino",null,"X",null,"Atlético/MG"]
[null,null,null,null,null,7,"2022-05-21","16:00:00","Corinthians",null,"X",null,"São Paulo"]
[null,null,null,null,null,7,"2022-05-21","16:00:00","Santos",null,"X",null,"Ceará"]
[null,null,null,null,null,7,"2022-05-21","16:00:00","Juventude",null,"X",null,"Palmeiras"]
[null,null,null,null,null,7,"2022-05-21","16:00:00","Fortaleza",null,"X",null,"Fluminense"]
[null,null,null,null,null,7,"2022-05-21","16:00:00","Atlético/GO",null,"X",null,"Coritiba"]
[null,null,null,null,null,7,"2022-05-21","16:00:00","Cuiabá",null,"X",null,"Internacional"]
[null,null,null,null,null,7,"2022-05-21","16:00:00","Athletico/PR",null,"X",null,"Avaí"]
[null,null,null,null,null,8,"2022-05-28","16:00:00","Atlético/MG",null,"X",null,"Avaí"]
[null,null,null,null,null,8,"2022-05-28","16:00:00","Fluminense",null,"X",null,"Flamengo"]
[null,null,null,null,null,8,"2022-05-28","16:00:00","São Paulo",null,"X",null,"Ceará"]
[null,null,null,null,null,8,"2022-05-28","16:00:00","Corinthians",null,"X",null,"América/MG"]
[null,null,null,null,null,8,"2022-05-28","16:00:00","Santos",null,"X",null,"Palmeiras"]
[null,null,null,null,null,8,"2022-05-28","16:00:00","Internacional",null,"X",null,"Atlético/GO"]
[null,null,null,null,null,8,"2022-05-28","16:00:00","Fortaleza",null,"X",null,"Juventude"]
[null,null,null,null,null,8,"2022-05-28","16:00:00","Goiás",null,"X",null,"RB Bragantino"]
[null,null,null,null,null,8,"2022-05-28","16:00:00","Cuiabá",null,"X",null,"Athletico/PR"]
[null,null,null,null,null,8,"2022-05-28","16:00:00","Coritiba",null,"X",null,"Botafogo"]
[null,null,null,null,null,9,"2022-06-04","16:00:00","América/MG",null,"X",null,"Cuiabá"]
[null,null,null,null,null,9,"2022-06-04","16:00:00","Flamengo",null,"X",null,"Fortaleza"]
[null,null,null,null,null,9,"2022-06-04","16:00:00","RB Bragantino",null,"X",null,"Internacional"]
[null,null,null,null,null,9,"2022-06-04","16:00:00","Palmeiras",null,"X",null,"Atlético/MG"]
[null,null,null,null,null,9,"2022-06-04","16:00:00","Botafogo",null,"X",null,"Goiás"]
[null,null,null,null,null,9,"2022-06-04","16:00:00","Juventude",null,"X",null,"Fluminense"]
[null,null,null,null,null,9,"2022-06-04","16:00:00","Ceará",null,"X",null,"Coritiba"]
[null,null,null,null,null,9,"2022-06-04","16:00:00","Atlético/GO",null,"X",null,"Corinthians"]
[null,null,null,null,null,9,"2022-06-04","16:00:00","Avaí",null,"X",null,"São Paulo"]
[null,null,null,null,null,9,"2022-06-04","16:00:00","Athletico/PR",null,"X",null,"Santos"]
[null,null,null,null,null,10,"2022-06-08","16:00:00","América/MG",null,"X",null,"Ceará"]
[null,null,null,null,null,10,"2022-06-08","16:00:00","Fluminense",null,"X",null,"Atlético/MG"]
[null,null,null,null,null,10,"2022-06-08","16:00:00","RB Bragantino",null,"X",null,"Flamengo"]
[null,null,null,null,null,10,"2022-06-08","16:00:00","Palmeiras",null,"X",null,"Botafogo"]
[null,null,null,null,null,10,"2022-06-08","16:00:00","Santos",null,"X",null,"Internacional"]
[null,null,null,null,null,10,"2022-06-08","16:00:00","Juventude",null,"X",null,"Athletico/PR"]
[null,null,null,null,null,10,"2022-06-08","16:00:00","Fortaleza",null,"X",null,"Goiás"]
[null,null,null,null,null,10,"2022-06-08","16:00:00","Atlético/GO",null,"X",null,"Avaí"]
[null,null,null,null,null,10,"2022-06-08","16:00:00","Cuiabá",null,"X",null,"Corinthians"]
[null,null,null,null,null,10,"2022-06-08","16:00:00","Coritiba",null,"X",null,"São Paulo"]
[null,null,null,null,null,11,"2022-06-11","16:00:00","Atlético/MG",null,"X",null,"Santos"]
[null,null,null,null,null,11,"2022-06-11","16:00:00","Fluminense",null,"X",null,"Atlético/GO"]
[null,null,null,null,null,11,"2022-06-11","16:00:00","São Paulo",null,"X",null,"América/MG"]
[null,null,null,null,null,11,"2022-06-11","16:00:00","Corinthians",null,"X",null,"Juventude"]
[null,null,null,null,null,11,"2022-06-11","16:00:00","Botafogo",null,"X",null,"Avaí"]
[null,null,null,null,null,11,"2022-06-11","16:00:00","Internacional",null,"X",null,"Flamengo"]
[null,null,null,null,null,11,"2022-06-11","16:00:00","Fortaleza",null,"X",null,"Athletico/PR"]
[null,null,null,null,null,11,"2022-06-11","16:00:00","Goiás",null,"X",null,"Ceará"]
[null,null,null,null,null,11,"2022-06-11","16:00:00","Cuiabá",null,"X",null,"RB Bragantino"]
[null,null,null,null,null,11,"2022-06-11","16:00:00","Coritiba",null,"X",null,"Palmeiras"]
[null,null,null,null,null,12,"2022-06-15","16:00:00","América/MG",null,"X",null,"Fluminense"]
[null,null,null,null,null,12,"2022-06-15","16:00:00","Flamengo",null,"X",null,"Cuiabá"]
[null,null,null,null,null,12,"2022-06-15","16:00:00","RB Bragantino",null,"X",null,"Coritiba"]
[null,null,null,null,null,12,"2022-06-15","16:00:00","Palmeiras",null,"X",null,"Atlético/GO"]
[null,null,null,null,null,12,"2022-06-15","16:00:00","Botafogo",null,"X",null,"São Paulo"]
[null,null,null,null,null,12,"2022-06-15","16:00:00","Juventude",null,"X",null,"Santos"]
[null,null,null,null,null,12,"2022-06-15","16:00:00","Ceará",null,"X",null,"Atlético/MG"]
[null,null,null,null,null,12,"2022-06-15","16:00:00","Goiás",null,"X",null,"Internacional"]
[null,null,null,null,null,12,"2022-06-15","16:00:00","Avaí",null,"X",null,"Fortaleza"]
[null,null,null,null,null,12,"2022-06-15","16:00:00","Athletico/PR",null,"X",null,"Corinthians"]
[null,null,null,null,null,13,"2022-06-18","16:00:00","Atlético/MG",null,"X",null,"Flamengo"]
[null,null,null,null,null,13,"2022-06-18","16:00:00","Fluminense",null,"X",null,"Avaí"]
[null,null,null,null,null,13,"2022-06-18","16:00:00","São Paulo",null,"X",null,"Palmeiras"]
[null,null,null,null,null,13,"2022-06-18","16:00:00","Corinthians",null,"X",null,"Goiás"]
[null,null,null,null,null,13,"2022-06-18","16:00:00","Santos",null,"X",null,"RB Bragantino"]
[null,null,null,null,null,13,"2022-06-18","16:00:00","Internacional",null,"X",null,"Botafogo"]
[null,null,null,null,null,13,"2022-06-18","16:00:00","Fortaleza",null,"X",null,"América/MG"]
[null,null,null,null,null,13,"2022-06-18","16:00:00","Atlético/GO",null,"X",null,"Juventude"]
[null,null,null,null,null,13,"2022-06-18","16:00:00","Cuiabá",null,"X",null,"Ceará"]
[null,null,null,null,null,13,"2022-06-18","16:00:00","Coritiba",null,"X",null,"Athletico/PR"]
[null,null,null,null,null,14,"2022-06-25","16:00:00","Atlético/MG",null,"X",null,"Fortaleza"]
[null,null,null,null,null,14,"2022-06-25","16:00:00","Flamengo",null,"X",null,"América/MG"]
[null,null,null,null,null,14,"2022-06-25","16:00:00","São Paulo",null,"X",null,"Juventude"]
[null,null,null,null,null,14,"2022-06-25","16:00:00","Corinthians",null,"X",null,"Santos"]
[null,null,null,null,null,14,"2022-06-25","16:00:00","Botafogo",null,"X",null,"Fluminense"]
[null,null,null,null,null,14,"2022-06-25","16:00:00","Internacional",null,"X",null,"Coritiba"]
[null,null,null,null,null,14,"2022-06-25","16:00:00","Ceará",null,"X",null,"Atlético/GO"]
[null,null,null,null,null,14,"2022-06-25","16:00:00","Goiás",null,"X",null,"Cuiabá"]
[null,null,null,null,null,14,"2022-06-25","16:00:00","Avaí",null,"X",null,"Palmeiras"]
[null,null,null,null,null,14,"2022-06-25","16:00:00","Athletico/PR",null,"X",null,"RB Bragantino"]
[null,null,null,null,null,15,"2022-07-02","16:00:00","América/MG",null,"X",null,"Goiás"]
[null,null,null,null,null,15,"2022-07-02","16:00:00","Fluminense",null,"X",null,"Corinthians"]
[null,null,null,null,null,15,"2022-07-02","16:00:00","RB Bragantino",null,"X",null,"Botafogo"]
[null,null,null,null,null,15,"2022-07-02","16:00:00","Palmeiras",null,"X",null,"Athletico/PR"]
[null,null,null,null,null,15,"2022-07-02","16:00:00","Santos",null,"X",null,"Flamengo"]
[null,null,null,null,null,15,"2022-07-02","16:00:00","Juventude",null,"X",null,"Atlético/MG"]
[null,null,null,null,null,15,"2022-07-02","16:00:00","Ceará",null,"X",null,"Internacional"]
[null,null,null,null,null,15,"2022-07-02","16:00:00","Atlético/GO",null,"X",null,"São Paulo"]
[null,null,null,null,null,15,"2022-07-02","16:00:00","Avaí",null,"X",null,"Cuiabá"]
[null,null,null,null,null,15,"2022-07-02","16:00:00","Coritiba",null,"X",null,"Fortaleza"]
[null,null,null,null,null,16,"2022-07-09","16:00:00","Atlético/MG",null,"X",null,"São Paulo"]
[null,null,null,null,null,16,"2022-07-09","16:00:00","Fluminense",null,"X",null,"Ceará"]
[null,null,null,null,null,16,"2022-07-09","16:00:00","RB Bragantino",null,"X",null,"Avaí"]
[null,null,null,null,null,16,"2022-07-09","16:00:00","Corinthians",null,"X",null,"Flamengo"]
[null,null,null,null,null,16,"2022-07-09","16:00:00","Santos",null,"X",null,"Atlético/GO"]
[null,null,null,null,null,16,"2022-07-09","16:00:00","Internacional",null,"X",null,"América/MG"]
[null,null,null,null,null,16,"2022-07-09","16:00:00","Fortaleza",null,"X",null,"Palmeiras"]
[null,null,null,null,null,16,"2022-07-09","16:00:00","Goiás",null,"X",null,"Athletico/PR"]
[null,null,null,null,null,16,"2022-07-09","16:00:00","Cuiabá",null,"X",null,"Botafogo"]
[null,null,null,null,null,16,"2022-07-09","16:00:00","Coritiba",null,"X",null,"Juventude"]
[null,null,null,null,null,17,"2022-07-16","16:00:00","América/MG",null,"X",null,"RB Bragantino"]
[null,null,null,null,null,17,"2022-07-16","16:00:00","Flamengo",null,"X",null,"Coritiba"]
[null,null,null,null,null,17,"2022-07-16","16:00:00","São Paulo",null,"X",null,"Fluminense"]
[null,null,null,null,null,17,"2022-07-16","16:00:00","Palmeiras",null,"X",null,"Cuiabá"]
[null,null,null,null,null,17,"2022-07-16","16:00:00","Botafogo",null,"X",null,"Atlético/MG"]
[null,null,null,null,null,17,"2022-07-16","16:00:00","Juventude",null,"X",null,"Goiás"]
[null,null,null,null,null,17,"2022-07-16","16:00:00","Ceará",null,"X",null,"Corinthians"]
[null,null,null,null,null,17,"2022-07-16","16:00:00","Atlético/GO",null,"X",null,"Fortaleza"]
[null,null,null,null,null,17,"2022-07-16","16:00:00","Avaí",null,"X",null,"Santos"]
[null,null,null,null,null,17,"2022-07-16","16:00:00","Athletico/PR",null,"X",null,"Internacional"]
[null,null,null,null,null,18,"2022-07-20","16:00:00","América/MG",null,"X",null,"Palmeiras"]
[null,null,null,null,null,18,"2022-07-20","16:00:00","Flamengo",null,"X",null,"Juventude"]
[null,null,null,null,null,18,"2022-07-20","16:00:00","RB Bragantino",null,"X",null,"Fortaleza"]
[null,null,null,null,null,18,"2022-07-20","16:00:00","Corinthians",null,"X",null,"Coritiba"]
[null,null,null,null,null,18,"2022-07-20","16:00:00","Santos",null,"X",null,"Botafogo"]
[null,null,null,null,null,18,"2022-07-20","16:00:00","Internacional",null,"X",null,"São Paulo"]
[null,null,null,null,null,18,"2022-07-20","16:00:00","Ceará",null,"X",null,"Avaí"]
[null,null,null,null,null,18,"2022-07-20","16:00:00","Goiás",null,"X",null,"Fluminense"]
[null,null,null,null,null,18,"2022-07-20","16:00:00","Cuiabá",null,"X",null,"Atlético/MG"]
[null,null,null,null,null,18,"2022-07-20","16:00:00","Athletico/PR",null,"X",null,"Atlético/GO"]
[null,null,null,null,null,19,"2022-07-23","16:00:00","Atlético/MG",null,"X",null,"Corinthians"]
[null,null,null,null,null,19,"2022-07-23","16:00:00","Fluminense",null,"X",null,"RB Bragantino"]
[null,null,null,null,null,19,"2022-07-23","16:00:00","São Paulo",null,"X",null,"Goiás"]
[null,null,null,null,null,19,"2022-07-23","16:00:00","Palmeiras",null,"X",null,"Internacional"]
[null,null,null,null,null,19,"2022-07-23","16:00:00","Botafogo",null,"X",null,"Athletico/PR"]
[null,null,null,null,null,19,"2022-07-23","16:00:00","Juventude",null,"X",null,"Ceará"]
[null,null,null,null,null,19,"2022-07-23","16:00:00","Fortaleza",null,"X",null,"Santos"]
[null,null,null,null,null,19,"2022-07-23","16:00:00","Atlético/GO",null,"X",null,"América/MG"]
[null,null,null,null,null,19,"2022-07-23","16:00:00","Avaí",null,"X",null,"Flamengo"]
[null,null,null,null,null,19,"2022-07-23","16:00:00","Coritiba",null,"X",null,"Cuiabá"]
[null,null,null,null,null,19.5,"2022-07-30","16:00:00","América/MG",null,"X",null,"Avaí"]
[null,null,null,null,null,20,"2022-07-30","16:00:00","Flamengo",null,"X",null,"Atlético/GO"]
[null,null,null,null,null,20,"2022-07-30","16:00:00","RB Bragantino",null,"X",null,"Juventude"]
[null,null,null,null,null,20,"2022-07-30","16:00:00","Corinthians",null,"X",null,"Botafogo"]
[null,null,null,null,null,20,"2022-07-30","16:00:00","Santos",null,"X",null,"Fluminense"]
[null,null,null,null,null,20,"2022-07-30","16:00:00","Internacional",null,"X",null,"Atlético/MG"]
[null,null,null,null,null,20,"2022-07-30","16:00:00","Ceará",null,"X",null,"Palmeiras"]
[null,null,null,null,null,20,"2022-07-30","16:00:00","Goiás",null,"X",null,"Coritiba"]
[null,null,null,null,null,20,"2022-07-30","16:00:00","Cuiabá",null,"X",null,"Fortaleza"]
[null,null,null,null,null,20,"2022-07-30","16:00:00","Athletico/PR",null,"X",null,"São Paulo"]
[null,null,null,null,null,20,"2022-08-06","16:00:00","Atlético/MG",null,"X",null,"Athletico/PR"]
[null,null,null,null,null,21,"2022-08-06","16:00:00","Fluminense",null,"X",null,"Cuiabá"]
[null,null,null,null,null,21,"2022-08-06","16:00:00","São Paulo",null,"X",null,"Flamengo"]
[null,null,null,null,null,21,"2022-08-06","16:00:00","Palmeiras",null,"X",null,"Goiás"]
[null,null,null,null,null,21,"2022-08-06","16:00:00","Botafogo",null,"X",null,"Ceará"]
[null,null,null,null,null,21,"2022-08-06","16:00:00","Juventude",null,"X",null,"América/MG"]
[null,null,null,null,null,21,"2022-08-06","16:00:00","Fortaleza",null,"X",null,"Internacional"]
[null,null,null,null,null,21,"2022-08-06","16:00:00","Atlético/GO",null,"X",null,"RB Bragantino"]
[null,null,null,null,null,21,"2022-08-06","16:00:00","Avaí",null,"X",null,"Corinthians"]
[null,null,null,null,null,21,"2022-08-06","16:00:00","Coritiba",null,"X",null,"Santos"]
[null,null,null,null,null,21,"2022-08-13","16:00:00","América/MG",null,"X",null,"Santos"]
[null,null,null,null,null,22,"2022-08-13","16:00:00","Flamengo",null,"X",null,"Athletico/PR"]
[null,null,null,null,null,22,"2022-08-13","16:00:00","São Paulo",null,"X",null,"RB Bragantino"]
[null,null,null,null,null,22,"2022-08-13","16:00:00","Corinthians",null,"X",null,"Palmeiras"]
[null,null,null,null,null,22,"2022-08-13","16:00:00","Botafogo",null,"X",null,"Atlético/GO"]
[null,null,null,null,null,22,"2022-08-13","16:00:00","Internacional",null,"X",null,"Fluminense"]
[null,null,null,null,null,22,"2022-08-13","16:00:00","Ceará",null,"X",null,"Fortaleza"]
[null,null,null,null,null,22,"2022-08-13","16:00:00","Goiás",null,"X",null,"Avaí"]
[null,null,null,null,null,22,"2022-08-13","16:00:00","Cuiabá",null,"X",null,"Juventude"]
[null,null,null,null,null,22,"2022-08-13","16:00:00","Coritiba",null,"X",null,"Atlético/MG"]
[null,null,null,null,null,22,"2022-08-20","16:00:00","Atlético/MG",null,"X",null,"Goiás"]
[null,null,null,null,null,23,"2022-08-20","16:00:00","Fluminense",null,"X",null,"Coritiba"]
[null,null,null,null,null,23,"2022-08-20","16:00:00","RB Bragantino",null,"X",null,"Ceará"]
[null,null,null,null,null,23,"2022-08-20","16:00:00","Palmeiras",null,"X",null,"Flamengo"]
[null,null,null,null,null,23,"2022-08-20","16:00:00","Santos",null,"X",null,"São Paulo"]
[null,null,null,null,null,23,"2022-08-20","16:00:00","Juventude",null,"X",null,"Botafogo"]
[null,null,null,null,null,23,"2022-08-20","16:00:00","Fortaleza",null,"X",null,"Corinthians"]
[null,null,null,null,null,23,"2022-08-20","16:00:00","Atlético/GO",null,"X",null,"Cuiabá"]
[null,null,null,null,null,23,"2022-08-20","16:00:00","Avaí",null,"X",null,"Internacional"]
[null,null,null,null,null,23,"2022-08-20","16:00:00","Athletico/PR",null,"X",null,"América/MG"]
[null,null,null,null,null,23,"2022-08-27","16:00:00","América/MG",null,"X",null,"Atlético/MG"]
[null,null,null,null,null,24,"2022-08-27","16:00:00","Fluminense",null,"X",null,"Palmeiras"]
[null,null,null,null,null,24,"2022-08-27","16:00:00","São Paulo",null,"X",null,"Fortaleza"]
[null,null,null,null,null,24,"2022-08-27","16:00:00","Corinthians",null,"X",null,"RB Bragantino"]
[null,null,null,null,null,24,"2022-08-27","16:00:00","Botafogo",null,"X",null,"Flamengo"]
[null,null,null,null,null,24,"2022-08-27","16:00:00","Internacional",null,"X",null,"Juventude"]
[null,null,null,null,null,24,"2022-08-27","16:00:00","Ceará",null,"X",null,"Athletico/PR"]
[null,null,null,null,null,24,"2022-08-27","16:00:00","Goiás",null,"X",null,"Atlético/GO"]
[null,null,null,null,null,24,"2022-08-27","16:00:00","Cuiabá",null,"X",null,"Santos"]
[null,null,null,null,null,24,"2022-08-27","16:00:00","Coritiba",null,"X",null,"Avaí"]
[null,null,null,null,null,24,"2022-09-03","16:00:00","América/MG",null,"X",null,"Coritiba"]
[null,null,null,null,null,25,"2022-09-03","16:00:00","Flamengo",null,"X",null,"Ceará"]
[null,null,null,null,null,25,"2022-09-03","16:00:00","RB Bragantino",null,"X",null,"Palmeiras"]
[null,null,null,null,null,25,"2022-09-03","16:00:00","Corinthians",null,"X",null,"Internacional"]
[null,null,null,null,null,25,"2022-09-03","16:00:00","Santos",null,"X",null,"Goiás"]
[null,null,null,null,null,25,"2022-09-03","16:00:00","Juventude",null,"X",null,"Avaí"]
[null,null,null,null,null,25,"2022-09-03","16:00:00","Fortaleza",null,"X",null,"Botafogo"]
[null,null,null,null,null,25,"2022-09-03","16:00:00","Atlético/GO",null,"X",null,"Atlético/MG"]
[null,null,null,null,null,25,"2022-09-03","16:00:00","Cuiabá",null,"X",null,"São Paulo"]
[null,null,null,null,null,25,"2022-09-03","16:00:00","Athletico/PR",null,"X",null,"Fluminense"]
[null,null,null,null,null,25,"2022-09-10","16:00:00","Atlético/MG",null,"X",null,"RB Bragantino"]
[null,null,null,null,null,26,"2022-09-10","16:00:00","Fluminense",null,"X",null,"Fortaleza"]
[null,null,null,null,null,26,"2022-09-10","16:00:00","São Paulo",null,"X",null,"Corinthians"]
[null,null,null,null,null,26,"2022-09-10","16:00:00","Palmeiras",null,"X",null,"Juventude"]
[null,null,null,null,null,26,"2022-09-10","16:00:00","Botafogo",null,"X",null,"América/MG"]
[null,null,null,null,null,26,"2022-09-10","16:00:00","Internacional",null,"X",null,"Cuiabá"]
[null,null,null,null,null,26,"2022-09-10","16:00:00","Ceará",null,"X",null,"Santos"]
[null,null,null,null,null,26,"2022-09-10","16:00:00","Goiás",null,"X",null,"Flamengo"]
[null,null,null,null,null,26,"2022-09-10","16:00:00","Avaí",null,"X",null,"Athletico/PR"]
[null,null,null,null,null,26,"2022-09-10","16:00:00","Coritiba",null,"X",null,"Atlético/GO"]
[null,null,null,null,null,26,"2022-09-17","16:00:00","América/MG",null,"X",null,"Corinthians"]
[null,null,null,null,null,27,"2022-09-17","16:00:00","Flamengo",null,"X",null,"Fluminense"]
[null,null,null,null,null,27,"2022-09-17","16:00:00","RB Bragantino",null,"X",null,"Goiás"]
[null,null,null,null,null,27,"2022-09-17","16:00:00","Palmeiras",null,"X",null,"Santos"]
[null,null,null,null,null,27,"2022-09-17","16:00:00","Botafogo",null,"X",null,"Coritiba"]
[null,null,null,null,null,27,"2022-09-17","16:00:00","Juventude",null,"X",null,"Fortaleza"]
[null,null,null,null,null,27,"2022-09-17","16:00:00","Ceará",null,"X",null,"São Paulo"]
[null,null,null,null,null,27,"2022-09-17","16:00:00","Atlético/GO",null,"X",null,"Internacional"]
[null,null,null,null,null,27,"2022-09-17","16:00:00","Avaí",null,"X",null,"Atlético/MG"]
[null,null,null,null,null,27,"2022-09-17","16:00:00","Athletico/PR",null,"X",null,"Cuiabá"]
[null,null,null,null,null,27,"2022-09-28","16:00:00","Atlético/MG",null,"X",null,"Palmeiras"]
[null,null,null,null,null,28,"2022-09-28","16:00:00","Fluminense",null,"X",null,"Juventude"]
[null,null,null,null,null,28,"2022-09-28","16:00:00","São Paulo",null,"X",null,"Avaí"]
[null,null,null,null,null,28,"2022-09-28","16:00:00","Corinthians",null,"X",null,"Atlético/GO"]
[null,null,null,null,null,28,"2022-09-28","16:00:00","Santos",null,"X",null,"Athletico/PR"]
[null,null,null,null,null,28,"2022-09-28","16:00:00","Internacional",null,"X",null,"RB Bragantino"]
[null,null,null,null,null,28,"2022-09-28","16:00:00","Fortaleza",null,"X",null,"Flamengo"]
[null,null,null,null,null,28,"2022-09-28","16:00:00","Goiás",null,"X",null,"Botafogo"]
[null,null,null,null,null,28,"2022-09-28","16:00:00","Cuiabá",null,"X",null,"América/MG"]
[null,null,null,null,null,28,"2022-09-28","16:00:00","Coritiba",null,"X",null,"Ceará"]
[null,null,null,null,null,28,"2022-09-30","16:00:00","Atlético/MG",null,"X",null,"Fluminense"]
[null,null,null,null,null,29,"2022-09-30","16:00:00","Flamengo",null,"X",null,"RB Bragantino"]
[null,null,null,null,null,29,"2022-09-30","16:00:00","São Paulo",null,"X",null,"Coritiba"]
[null,null,null,null,null,29,"2022-09-30","16:00:00","Corinthians",null,"X",null,"Cuiabá"]
[null,null,null,null,null,29,"2022-09-30","16:00:00","Botafogo",null,"X",null,"Palmeiras"]
[null,null,null,null,null,29,"2022-09-30","16:00:00","Internacional",null,"X",null,"Santos"]
[null,null,null,null,null,29,"2022-09-30","16:00:00","Ceará",null,"X",null,"América/MG"]
[null,null,null,null,null,29,"2022-09-30","16:00:00","Goiás",null,"X",null,"Fortaleza"]
[null,null,null,null,null,29,"2022-09-30","16:00:00","Avaí",null,"X",null,"Atlético/GO"]
[null,null,null,null,null,29,"2022-09-30","16:00:00","Athletico/PR",null,"X",null,"Juventude"]
[null,null,null,null,null,29,"2022-10-05","16:00:00","América/MG",null,"X",null,"São Paulo"]
[null,null,null,null,null,30,"2022-10-05","16:00:00","Flamengo",null,"X",null,"Internacional"]
[null,null,null,null,null,30,"2022-10-05","16:00:00","RB Bragantino",null,"X",null,"Cuiabá"]
[null,null,null,null,null,30,"2022-10-05","16:00:00","Palmeiras",null,"X",null,"Coritiba"]
[null,null,null,null,null,30,"2022-10-05","16:00:00","Santos",null,"X",null,"Atlético/MG"]
[null,null,null,null,null,30,"2022-10-05","16:00:00","Juventude",null,"X",null,"Corinthians"]
[null,null,null,null,null,30,"2022-10-05","16:00:00","Ceará",null,"X",null,"Goiás"]
[null,null,null,null,null,30,"2022-10-05","16:00:00","Atlético/GO",null,"X",null,"Fluminense"]
[null,null,null,null,null,30,"2022-10-05","16:00:00","Avaí",null,"X",null,"Botafogo"]
[null,null,null,null,null,30,"2022-10-05","16:00:00","Athletico/PR",null,"X",null,"Fortaleza"]
[null,null,null,null,null,30,"2022-10-08","16:00:00","Atlético/MG",null,"X",null,"Ceará"]
[null,null,null,null,null,31,"2022-10-08","16:00:00","Fluminense",null,"X",null,"América/MG"]
[null,null,null,null,null,31,"2022-10-08","16:00:00","São Paulo",null,"X",null,"Botafogo"]
[null,null,null,null,null,31,"2022-10-08","16:00:00","Corinthians",null,"X",null,"Athletico/PR"]
[null,null,null,null,null,31,"2022-10-08","16:00:00","Santos",null,"X",null,"Juventude"]
[null,null,null,null,null,31,"2022-10-08","16:00:00","Internacional",null,"X",null,"Goiás"]
[null,null,null,null,null,31,"2022-10-08","16:00:00","Fortaleza",null,"X",null,"Avaí"]
[null,null,null,null,null,31,"2022-10-08","16:00:00","Atlético/GO",null,"X",null,"Palmeiras"]
[null,null,null,null,null,31,"2022-10-08","16:00:00","Cuiabá",null,"X",null,"Flamengo"]
[null,null,null,null,null,31,"2022-10-08","16:00:00","Coritiba",null,"X",null,"RB Bragantino"]
[null,null,null,null,null,31,"2022-10-15","16:00:00","América/MG",null,"X",null,"Fortaleza"]
[null,null,null,null,null,32,"2022-10-15","16:00:00","Flamengo",null,"X",null,"Atlético/MG"]
[null,null,null,null,null,32,"2022-10-15","16:00:00","RB Bragantino",null,"X",null,"Santos"]
[null,null,null,null,null,32,"2022-10-15","16:00:00","Palmeiras",null,"X",null,"São Paulo"]
[null,null,null,null,null,32,"2022-10-15","16:00:00","Botafogo",null,"X",null,"Internacional"]
[null,null,null,null,null,32,"2022-10-15","16:00:00","Juventude",null,"X",null,"Atlético/GO"]
[null,null,null,null,null,32,"2022-10-15","16:00:00","Ceará",null,"X",null,"Cuiabá"]
[null,null,null,null,null,32,"2022-10-15","16:00:00","Goiás",null,"X",null,"Corinthians"]
[null,null,null,null,null,32,"2022-10-15","16:00:00","Avaí",null,"X",null,"Fluminense"]
[null,null,null,null,null,32,"2022-10-15","16:00:00","Athletico/PR",null,"X",null,"Coritiba"]
[null,null,null,null,null,32,"2022-10-22","16:00:00","América/MG",null,"X",null,"Flamengo"]
[null,null,null,null,null,33,"2022-10-22","16:00:00","Fluminense",null,"X",null,"Botafogo"]
[null,null,null,null,null,33,"2022-10-22","16:00:00","RB Bragantino",null,"X",null,"Athletico/PR"]
[null,null,null,null,null,33,"2022-10-22","16:00:00","Palmeiras",null,"X",null,"Avaí"]
[null,null,null,null,null,33,"2022-10-22","16:00:00","Santos",null,"X",null,"Corinthians"]
[null,null,null,null,null,33,"2022-10-22","16:00:00","Juventude",null,"X",null,"São Paulo"]
[null,null,null,null,null,33,"2022-10-22","16:00:00","Fortaleza",null,"X",null,"Atlético/MG"]
[null,null,null,null,null,33,"2022-10-22","16:00:00","Atlético/GO",null,"X",null,"Ceará"]
[null,null,null,null,null,33,"2022-10-22","16:00:00","Cuiabá",null,"X",null,"Goiás"]
[null,null,null,null,null,33,"2022-10-22","16:00:00","Coritiba",null,"X",null,"Internacional"]
[null,null,null,null,null,33,"2022-10-26","16:00:00","Atlético/MG",null,"X",null,"Juventude"]
[null,null,null,null,null,34,"2022-10-26","16:00:00","Flamengo",null,"X",null,"Santos"]
[null,null,null,null,null,34,"2022-10-26","16:00:00","São Paulo",null,"X",null,"Atlético/GO"]
[null,null,null,null,null,34,"2022-10-26","16:00:00","Corinthians",null,"X",null,"Fluminense"]
[null,null,null,null,null,34,"2022-10-26","16:00:00","Botafogo",null,"X",null,"RB Bragantino"]
[null,null,null,null,null,34,"2022-10-26","16:00:00","Internacional",null,"X",null,"Ceará"]
[null,null,null,null,null,34,"2022-10-26","16:00:00","Fortaleza",null,"X",null,"Coritiba"]
[null,null,null,null,null,34,"2022-10-26","16:00:00","Goiás",null,"X",null,"América/MG"]
[null,null,null,null,null,34,"2022-10-26","16:00:00","Cuiabá",null,"X",null,"Avaí"]
[null,null,null,null,null,34,"2022-10-26","16:00:00","Athletico/PR",null,"X",null,"Palmeiras"]
[null,null,null,null,null,34,"2022-10-28","16:00:00","América/MG",null,"X",null,"Internacional"]
[null,null,null,null,null,35,"2022-10-28","16:00:00","Flamengo",null,"X",null,"Corinthians"]
[null,null,null,null,null,35,"2022-10-28","16:00:00","São Paulo",null,"X",null,"Atlético/MG"]
[null,null,null,null,null,35,"2022-10-28","16:00:00","Palmeiras",null,"X",null,"Fortaleza"]
[null,null,null,null,null,35,"2022-10-28","16:00:00","Botafogo",null,"X",null,"Cuiabá"]
[null,null,null,null,null,35,"2022-10-28","16:00:00","Juventude",null,"X",null,"Coritiba"]
[null,null,null,null,null,35,"2022-10-28","16:00:00","Ceará",null,"X",null,"Fluminense"]
[null,null,null,null,null,35,"2022-10-28","16:00:00","Atlético/GO",null,"X",null,"Santos"]
[null,null,null,null,null,35,"2022-10-28","16:00:00","Avaí",null,"X",null,"RB Bragantino"]
[null,null,null,null,null,35,"2022-10-28","16:00:00","Athletico/PR",null,"X",null,"Goiás"]
[null,null,null,null,null,35,"2022-11-05","16:00:00","Atlético/MG",null,"X",null,"Botafogo"]
[null,null,null,null,null,36,"2022-11-05","16:00:00","Fluminense",null,"X",null,"São Paulo"]
[null,null,null,null,null,36,"2022-11-05","16:00:00","RB Bragantino",null,"X",null,"América/MG"]
[null,null,null,null,null,36,"2022-11-05","16:00:00","Corinthians",null,"X",null,"Ceará"]
[null,null,null,null,null,36,"2022-11-05","16:00:00","Santos",null,"X",null,"Avaí"]
[null,null,null,null,null,36,"2022-11-05","16:00:00","Internacional",null,"X",null,"Athletico/PR"]
[null,null,null,null,null,36,"2022-11-05","16:00:00","Fortaleza",null,"X",null,"Atlético/GO"]
[null,null,null,null,null,36,"2022-11-05","16:00:00","Goiás",null,"X",null,"Juventude"]
[null,null,null,null,null,36,"2022-11-05","16:00:00","Cuiabá",null,"X",null,"Palmeiras"]
[null,null,null,null,null,36,"2022-11-05","16:00:00","Coritiba",null,"X",null,"Flamengo"]
[null,null,null,null,null,36,"2022-11-09","16:00:00","Atlético/MG",null,"X",null,"Cuiabá"]
[null,null,null,null,null,37,"2022-11-09","16:00:00","Fluminense",null,"X",null,"Goiás"]
[null,null,null,null,null,37,"2022-11-09","16:00:00","São Paulo",null,"X",null,"Internacional"]
[null,null,null,null,null,37,"2022-11-09","16:00:00","Palmeiras",null,"X",null,"América/MG"]
[null,null,null,null,null,37,"2022-11-09","16:00:00","Botafogo",null,"X",null,"Santos"]
[null,null,null,null,null,37,"2022-11-09","16:00:00","Juventude",null,"X",null,"Flamengo"]
[null,null,null,null,null,37,"2022-11-09","16:00:00","Fortaleza",null,"X",null,"RB Bragantino"]
[null,null,null,null,null,37,"2022-11-09","16:00:00","Atlético/GO",null,"X",null,"Athletico/PR"]
[null,null,null,null,null,37,"2022-11-09","16:00:00","Avaí",null,"X",null,"Ceará"]
[null,null,null,null,null,37,"2022-11-09","16:00:00","Coritiba",null,"X",null,"Corinthians"]
[null,null,null,null,null,37,"2022-11-13","16:00:00","América/MG",null,"X",null,"Atlético/GO"]
[null,null,null,null,null,38,"2022-11-13","16:00:00","Flamengo",null,"X",null,"Avaí"]
[null,null,null,null,null,38,"2022-11-13","16:00:00","RB Bragantino",null,"X",null,"Fluminense"]
[null,null,null,null,null,38,"2022-11-13","16:00:00","Corinthians",null,"X",null,"Atlético/MG"]
[null,null,null,null,null,38,"2022-11-13","16:00:00","Santos",null,"X",null,"Fortaleza"]
[null,null,null,null,null,38,"2022-11-13","16:00:00","Internacional",null,"X",null,"Palmeiras"]
[null,null,null,null,null,38,"2022-11-13","16:00:00","Ceará",null,"X",null,"Juventude"]
[null,null,null,null,null,38,"2022-11-13","16:00:00","Goiás",null,"X",null,"São Paulo"]
[null,null,null,null,null,38,"2022-11-13","16:00:00","Cuiabá",null,"X",null,"Coritiba"]
[null,null,null,null,null,38,"2022-11-13","16:00:00","Athletico/PR",null,"X",null,"Botafogo"]